[Event "2nd Serbia Open Masters 2022"]
[Site "Novi Sad"]
[Date "2022.06.29"]
[Round "2.47"]
[White "Pecarski, Dragisa"]
[Black "Perunovic, Miodrag"]
[Result "0-1"]
[ECO "E85"]
[WhiteElo "2122"]
[BlackElo "2413"]
[Annotator "TA"]
[PlyCount "72"]
[EventDate "2022.06.28"]
[EventType "swiss"]
[EventCountry "SRB"]
[SourceTitle "playchess.com"]
[Source "ChessBase"]
[SourceQuality "1"]
[TimeControl "40/5400+30:900+30"]

{[%evp 18,72,59,58,67,61,69,21,18,-82,-73,-206,-206,-221,-220,-214,-150,-216,-229,-212,-237,-233,-114,-114,-65,-63,-47,-39,-34,-66,-78,-135,-121,-120,-130,-121,914,-200,-208,-547,15,-66,37,-93,-93,-184,-165,-776,-155,-592,-162,-616,-163,-650,-50,-649,-225]} 1. d4 {[%emt 1:31:00]} Nf6 {[%emt 1:31:00]} 2. c4 {[%emt 0:00:30]} g6 {[%emt 0:00:30]} 3. Nc3 {[%emt 0:00:30]} Bg7 {[%emt 0:00:30]} 4. e4 {[%emt 0:00:30]} d6 {[%emt 0:00:30]} 5. Be3 {[%emt 0:00:30]} O-O {[%emt 0:00:30]} 6. f3 {[%emt 0:00:30]} Nc6 {[%emt 0:00:30]} 7. Nge2 {[%emt 0:00:30]} a6 {[%emt 0:00:30]} 8. Qd2 {[%emt 0:00:30]} Na5 {[%emt 0:00:30]} 9. Nc1 {[%emt 0:00:30]} e5 {[%emt 0:00:30]} 10. d5 {[%emt 0:00:30] b4 is the strong threat.} c5 {[%emt 0:00:30] E85: King's Indian: Sämisch: 6...e5.} 11. Bd3 {[%emt 0:00:30]} Nh5 {[%emt 0:00:30][%cal Oh5f4] [#]} 12. N1e2 $146 {[%emt 0:00:30] Inhibits Nf4.} (12. Rb1 $14) ({Predecessor:} 12. Rb1 b5 13. cxb5 c4 14. b4 cxd3 15. bxa5 axb5 16. Nxd3 Rxa5 17. a4 Nf4 18. O-O {1-0 (35) Wiedenkeller,M (2450)-Britton,R (2275) London 1987}) 12... b5 $11 {[%emt 0:00:30] The position is equal.} 13. cxb5 {[%emt 0:00:30]} (13. g4 $11 {remains equal.} bxc4 14. Bc2) 13... axb5 $17 {[%emt 0:00:30]} 14. Nxb5 {[%emt 0:00:30] [#]} (14. O-O $17 {keeps fighting.}) 14... Nb3 $1 $19 {[%emt 0:00:30][%mdl 576] Pin, Double Attack} 15. Qd1 {[%emt 0:00:30]} ({Don't blunder} 15. Bg5 $2 f6 16. Qd1 Nxa1 $19) 15... Nxa1 {[%emt 0:00:30]} 16. Qxa1 {[%emt 0:00:30]} Qa5+ {[%emt 0:00:30]} 17. Kf2 {[%emt 0:00:30]} (17. Nbc3 $17) 17... Ba6 {[%emt 0:00:30]} ({And not} 17... Qxa2 18. Qxa2 Rxa2 19. Nxd6 $17) 18. a4 {[%emt 0:00:30]} f5 {[%emt 0:00:30] Strongly threatening ...fxe4.} 19. Nec3 {[%emt 0:00:30]} Qb4 {[%emt 0:00:30]} (19... fxe4 $19 {has better winning chances.} 20. Nxe4 Nf6) 20. Qa3 $17 {[%emt 0:00:30]} Qxa3 {[%emt 0:00:30]} (20... Nf4 $17 21. Bc2 Qxa3 22. bxa3 fxe4 23. Bxe4 Bxb5 24. Nxb5 Rxa4) 21. bxa3 $15 {[%emt 0:00:30]} Nf6 {[%emt 0:00:30] aiming for ...fxe4.} 22. exf5 {[%emt 0:00:30]} e4 {[%emt 0:00:30]} 23. Nxe4 {[%emt 0:00:30]} Nxe4+ {[%emt 0:00:30]} 24. Bxe4 {[%emt 0:00:30]} (24. fxe4 $142 Bxb5 25. Bxb5) 24... Bxb5 $17 {[%emt 0:00:30]} 25. axb5 {[%emt 0:00:30]} gxf5 {[%emt 0:00:30]} 26. Bb1 {[%emt 0:00:30]} Ra6 $2 {[%emt 0:00:30][%mdl 8192]} 27. a4 $4 {[%mdl 8192]} (27. bxa6 $18 {is the narrow road to win.} f4 28. Bd2) 27... Rxa4 $19 28. Bf4 $2 {[%emt 0:01:00]} (28. Bg5 {is tougher.}) 28... Ra3 $2 ({Black should try} 28... Rxf4 $19 29. Bd3 Rd4) 29. Kg3 {[%emt 0:00:30]} (29. Bxd6 $11 Rd8 30. Bxc5) 29... Bd4 (29... Be5 $15 30. Bxe5 dxe5) 30. h4 {[%emt 0:00:30]} (30. Bxd6 $14 Rf7 31. Bf4) 30... Rf6 $17 {Black is more active.} 31. Bg5 {[%emt 0:00:30] [#]} (31. Bc2 $17) 31... Be5+ $1 $19 32. Bf4 $2 {[%emt 0:00:30]} (32. Kh3 Rf7 33. Rd1) 32... Rb3 $2 {[%emt 0:03:00]} (32... Rg6+ $19 {is more deadly.} 33. Kf2 Bd4+ 34. Kf1 Ra1) 33. Kh3 $2 (33. Bxe5 $17 {was the crucial defense.} dxe5 34. d6) 33... Kg7 $2 {[%emt 0:00:30]} (33... Bxf4 34. h5 Rxb5) 34. Re1 $2 (34. Bxe5 dxe5 35. Rd1) 34... Rb4 $2 (34... Bxf4 35. Bc2 Rb2) 35. Bc2 $2 {[%emt 0:01:30]} (35. Bxe5 dxe5 36. d6) 35... Rxb5 $2 {[%emt 0:01:00]} ({Better is} 35... Rxf4 $19 36. Rf1 Rc4) 36. Bd1 $2 {[%emt 0:00:30][%mdl 8192] This bishop pair is nice.} Rf7 $2 {[%emt 0:00:30] Weighted Error Value: White=1.72/Black=1.18} (36... Bxf4 37. g3 Be5) 0-1

[Event "2nd Serbia Open Masters 2022"]
[Site "Novi Sad"]
[Date "2022.06.29"]
[Round "2.48"]
[White "Ivanisevic, Ivan"]
[Black "Micic, Aleksa"]
[Result "1-0"]
[ECO "A36"]
[WhiteElo "2550"]
[BlackElo "2121"]
[Annotator "TA"]
[PlyCount "76"]
[EventDate "2022.06.28"]
[EventType "swiss"]
[EventCountry "SRB"]
[SourceTitle "playchess.com"]
[Source "ChessBase"]
[SourceQuality "1"]
[TimeControl "40/5400+30:900+30"]

{[%evp 11,76,0,8,9,13,-9,9,2,24,0,0,-15,-3,-10,-4,-7,0,0,0,0,78,77,92,92,110,87,112,98,72,66,56,58,79,60,105,93,122,122,211,211,211,211,225,203,252,222,355,320,325,313,322,250,250,250,492,237,245,0,455,259,256,280,469,470,462,447,29984]} 1. c4 {[%emt 0:00:02]} Nf6 {[%emt 0:00:22]} 2. Nc3 {[%emt 0:00:05]} c5 {[%emt 0:01:02]} 3. g3 {[%emt 0:00:32]} g6 {[%emt 0:00:31]} 4. Bg2 {[%emt 0:00:06]} Bg7 {[%emt 0:00:08]} 5. b3 {[%emt 0:02:23]} O-O {[%emt 0:01:56]} 6. Bb2 {[%emt 0:00:05]} Nc6 {[%emt 0:01:37]} 7. Rc1 {[%emt 0:01:35] A36: Symmetrical English vs ...g6: 4 Bg2 Bg7.} d6 {[%emt 0:10:25]} 8. Nf3 {[%emt 0:09:51]} e5 {[%emt 0:14:42] Against d4} 9. O-O {[%emt 0:00:44] The position is equal.} h6 {[%emt 0:06:49]} 10. Ne1 {[%emt 0:13:16]} Be6 {[%emt 0:03:17] [#]} 11. a3 $146 {[%emt 0:18:22]} ({Predecessor:} 11. f4 exf4 12. gxf4 Re8 13. Nc2 d5 14. Na4 dxc4 15. bxc4 Qd6 16. Ne3 Rad8 17. Bxf6 Bxf6 18. Nd5 Bg4 19. Bf3 Bh3 20. Bg2 Bg4 21. Bf3 Bh3 22. Bg2 Bg4 {½-½ (22) Lammens,T (2286)-Hoeksema,H (2331) Netherlands 2016}) 11... Qd7 {[%emt 0:02:55]} 12. Nd5 {[%emt 0:00:21]} Bh3 {[%emt 0:00:52]} 13. f4 {[%emt 0:00:20]} Bxg2 {[%emt 0:04:09]} 14. Nxg2 {[%emt 0:02:26]} Nxd5 {[%emt 0:04:38]} 15. cxd5 {[%emt 0:00:06]} Ne7 {[%emt 0:00:03]} (15... Nd4 $11 {keeps the balance.}) 16. e4 $16 {[%emt 0:00:37]} f6 {[%emt 0:10:44]} 17. d3 {[%emt 0:00:32]} a5 {[%emt 0:00:56]} 18. Bc3 {[%emt 0:02:07]} b5 {[%emt 0:03:14]} 19. Bd2 {[%emt 0:00:07]} Kh7 {[%emt 0:03:32]} 20. fxe5 {[%emt 0:15:00]} fxe5 {[%emt 0:01:03]} 21. Rxf8 {[%emt 0:00:05]} Bxf8 {[%emt 0:00:47]} 22. Ne3 {[%emt 0:00:35]} Bg7 {[%emt 0:03:42]} 23. a4 {[%emt 0:00:25]} b4 {[%emt 0:00:25]} 24. Nc4 {[%emt 0:00:51] [#] aiming for Nb6.} Ra7 {[%emt 0:02:33]} (24... Nc8 $16 {was called for.}) 25. Qf3 {[%emt 0:01:18]} Ng8 {[%emt 0:01:09]} 26. Rf1 {[%emt 0:02:27]} Bf6 {[%emt 0:01:26]} 27. Kg2 {[%emt 0:00:18]} Kg7 {[%emt 0:21:03]} 28. h4 {[%emt 0:00:27][%cal Bh2h4,Bh4h5][%mdl 32]} Qd8 {[%emt 0:00:00]} (28... Kh7 $142 29. Be3 Kg7) 29. h5 $18 {[%emt 0:02:36] hxg6 is the strong threat.} g5 {[%emt 0:00:00]} 30. Qf5 {[%emt 0:00:26]} Qe7 {[%emt 0:00:00]} 31. Qg6+ {[%emt 0:02:43]} Kh8 {[%emt 0:00:00]} 32. Ne3 {[%emt 0:00:06] [#] Threatens to win with Nf5.} Qg7 $2 {[%emt 0:00:00]} (32... Qf8 {keeps fighting.} 33. Qf5 Qe8) 33. Qe8 {[%emt 0:03:13]} (33. Nf5 $142 Qxg6 34. hxg6) 33... Qd7 {[%emt 0:00:00]} 34. Qg6 {[%emt 0:03:06]} (34. Qb8 {And now Rxf6 would win.} Rb7 35. Qa8 (35. Qf8 Be7 $18)) 34... Qg7 {[%emt 0:00:00]} 35. Qxg7+ {[%emt 0:01:29]} (35. Nf5 $142 Qxg6 36. hxg6) 35... Bxg7 {[%emt 0:00:00]} 36. Nc4 {[%emt 0:00:05]} Ra6 {[%emt 0:00:00]} (36... Rd7 37. Nxa5 Nf6) 37. Rf7 {[%emt 0:00:10]} Nf6 {[%emt 0:00:00]} 38. Bxg5 {[%emt 0:00:43]} Bf8 {[%emt 0:05:30] Weighted Error Value: White=0.26 (precise) /Black=0.32} (38... hxg5 $18 39. h6 Nxd5 40. exd5 Bxh6) 1-0

[Event "2nd Serbia Open Masters 2022"]
[Site "Novi Sad"]
[Date "2022.06.29"]
[Round "2.49"]
[White "Dixit, Nikhil"]
[Black "Predke, Alexandr"]
[Result "0-1"]
[ECO "B48"]
[WhiteElo "2331"]
[BlackElo "2688"]
[Annotator "TA"]
[PlyCount "114"]
[EventDate "2022.06.28"]
[EventType "swiss"]
[EventCountry "SRB"]
[SourceTitle "playchess.com"]
[Source "ChessBase"]
[SourceQuality "1"]
[TimeControl "40/5400+30:900+30"]

{[%evp 12,114,41,14,39,50,52,66,141,70,76,65,70,69,63,59,55,94,190,160,181,183,164,149,147,144,132,126,156,146,167,169,144,129,144,88,70,85,76,66,75,20,40,33,38,0,0,-53,-73,-71,-84,-56,-87,-100,-100,-96,-98,-97,-100,-127,-110,-143,-143,-223,-210,-205,-64,-62,-61,-72,-4,-66,-66,-72,-72,-104,-72,-99,-99,-122,-54,-189,-178,-180,-144,-218,-215,-327,-316,-316,-316,-647,-316,-441,-416,-1381,-1355,-1326,-1247,-29957,-560,-29984,-29985,-29985,-29986]} 1. e4 {[%emt 0:09:21]} c5 {[%emt 0:00:06]} 2. Nf3 {[%emt 0:00:04]} e6 {[%emt 0:00:06]} 3. d4 {[%emt 0:02:29]} cxd4 {[%emt 0:01:04]} 4. Nxd4 {[%emt 0:00:05]} Nc6 {[%emt 0:00:04]} 5. Nc3 {[%emt 0:00:20]} Qc7 {[%emt 0:00:06]} 6. Be3 {[%emt 0:00:27]} a6 {[%emt 0:00:15]} 7. Bd3 {[%emt 0:00:49]} Bd6 {[%emt 0:10:35] B48: Sicilian: Taimanov: 5 Nc3 Qc7 6 Be3 a6 without Be2.} 8. Nxc6 {[%emt 0:03:31]} bxc6 {[%emt 0:00:42]} 9. Qg4 {[%emt 0:02:37] [#]} Ne7 $146 {[%emt 0:12:42]} (9... Kf8 $14) ({Predecessor:} 9... Be5 10. f4 Bf6 11. e5 h5 12. Qg3 h4 13. Qf2 Bd8 14. Ne4 g6 15. Nd6+ Kf8 {1-0 (45) Wittig,D-Hoermann,G freechess.de 2017}) 10. f4 {[%emt 0:10:43]} (10. Qxg7 $16 Rg8 11. Qh6 (11. Qxh7 Be5 $16)) 10... O-O $14 {[%emt 0:30:50]} 11. e5 {[%emt 0:07:05]} Bb4 {[%emt 0:00:03]} 12. O-O {[%emt 0:02:16]} Nf5 {[%emt 0:02:44]} 13. Qh3 {[%emt 0:10:41]} h6 {[%emt 0:13:37]} 14. Bf2 $40 {[%emt 0:05:43][%mdl 128] White attacks with force.} Ne7 {[%emt 0:00:03]} (14... d6 $16 {might work better.}) 15. Ne4 {[%emt 0:02:47]} Ng6 {[%emt 0:00:49]} 16. Be3 {[%emt 0:06:23][%cal Oe4f6]} d5 {[%emt 0:01:20]} 17. exd6 {[%emt 0:04:17]} Bxd6 {[%emt 0:00:07]} 18. Nxd6 {[%emt 0:01:18]} Qxd6 {[%emt 0:00:04]} 19. Qh5 {[%emt 0:01:56]} Qb8 {[%emt 0:13:06]} 20. b3 {[%emt 0:03:11]} Kh7 {[%emt 0:01:08]} 21. Rf3 {[%emt 0:03:29]} f5 {[%emt 0:01:48]} 22. Rg3 {[%emt 0:01:46]} Rf6 {[%emt 0:00:02]} 23. Bd4 {[%emt 0:08:32]} (23. Rf1 $142 $1 {And now Bd4 would win.} Qd6 24. Be2) 23... Nxf4 $16 {[%emt 0:00:25]} 24. Qe8 {[%emt 0:04:16]} (24. Qg4 Rg6 25. Qd1 e5 26. Rxg6 Nxg6 $15) 24... Rg6 {[%emt 0:00:23]} 25. Rxg6 {[%emt 0:04:01]} (25. Qxc6 Rxg3 26. hxg3 Nxd3 27. cxd3 e5 $11) 25... Nxg6 {[%emt 0:00:05]} 26. Qxc6 {[%emt 0:00:33]} ({Much weaker is} 26. Qf7 Qb7 27. Qxb7 (27. Qe8 c5 $17) 27... Bxb7 $11) (26. Rd1 $16) 26... e5 $11 {[%emt 0:03:33]} 27. Bf2 {[%emt 0:00:54]} e4 {[%emt 0:00:46]} 28. Bc4 {[%emt 0:00:40]} Ne5 {[%emt 0:01:28]} 29. Qe8 {[%emt 0:01:47]} (29. Qc5 $11 Nxc4 30. Qxc4) 29... Nxc4 $15 {[%emt 0:01:26]} 30. bxc4 {[%emt 0:00:05]} Qb2 {[%emt 0:00:07]} 31. Rf1 {[%emt 0:00:36][%cal Og2g4]} Qxc2 {[%emt 0:03:38]} 32. Bd4 {[%emt 0:01:31] White threatens Qf7 and mate.} Qxc4 {[%emt 0:02:14]} 33. Qe5 {[%emt 0:00:13][%csl Gd4][%cal Re5g7]} Qf7 {[%emt 0:00:29]} 34. Qxe4 {[%emt 0:01:10]} Ra7 {[%emt 0:00:38]} 35. Qf4 {[%emt 0:01:27]} Re7 {[%emt 0:00:36]} 36. a3 {[%emt 0:00:26]} Qd5 {[%emt 0:00:31] Threatens to win with ...Re4.} 37. Rd1 {[%emt 0:00:43]} (37. Bc3 $17) 37... Bb7 $19 {[%emt 0:00:48][%csl Gb7][%cal Rd5g2]} 38. Qf2 {[%emt 0:00:33]} f4 {[%emt 0:00:26]} ({Black should try} 38... Re4 $19 39. h3 Re6) 39. Qc2+ $15 {[%emt 0:00:19]} Qe4 {[%emt 0:00:03]} 40. Qxe4+ {[%emt 0:00:00]} Rxe4 {[%emt 0:00:00][%mdl 4096] Endgame KRB-KRB} (40... Bxe4 $17 41. g3 fxg3 42. hxg3 Bf3) 41. Kf2 {[%emt 0:01:26]} (41. Bxg7 $1 $11 Re2 42. Be5) 41... Bc6 {[%emt 0:00:55]} 42. Rd2 {[%emt 0:03:12]} g5 {[%emt 0:00:47]} 43. h3 {[%emt 0:00:25]} Kg6 {[%emt 0:01:48]} 44. Bb2 {[%emt 0:00:34]} Rc4 {[%emt 0:00:37]} 45. Rd6+ {[%emt 0:02:44]} Kf5 {[%emt 0:02:19]} (45... Kf7 $17 {White must now prevent ...Rc2+.} 46. Rf6+ Ke8 47. Re6+ Kf7 48. Rf6+ Ke8 49. Re6+ Kd7) 46. Rd2 {[%emt 0:01:47] [#] Inhibits Rc2.} ({Don't play} 46. Rf6+ Ke4 47. Re6+ Kd5 $17) (46. g4+ $15 fxg3+ 47. Kxg3) 46... h5 $1 $19 {[%emt 0:00:55]} 47. Bd4 {[%emt 0:00:51]} Be4 {[%emt 0:00:40] Hoping for ...Rc1.} 48. Bb2 {[%emt 0:00:30] Inhibits Rc1.} (48. g3 $17 {is a better defense.}) 48... Rc5 {[%emt 0:01:10]} 49. Bd4 {[%emt 0:02:01]} (49. g3 {was called for.}) 49... Rc1 {[%emt 0:01:03]} 50. Bb2 {[%emt 0:01:44]} Rb1 {[%emt 0:00:21]} 51. Bg7 $2 {[%emt 0:00:20]} (51. a4) 51... Rb7 {[%emt 0:01:27]} (51... g4 $142 {Strongly threatening ...g3+.} 52. hxg4+ hxg4) 52. Bb2 {[%emt 0:01:07]} Rb3 {[%emt 0:00:11]} 53. a4 {[%emt 0:00:29]} (53. Bc1 $142 Re3 54. g4+ hxg4 55. hxg4+ Kxg4 56. Rd4 Rf3+ 57. Ke1) 53... g4 {[%emt 0:00:32]} 54. hxg4+ {[%emt 0:00:05]} hxg4 {[%emt 0:00:03] aiming for ...Re3.} 55. Kf1 {[%emt 0:00:53]} g3 {[%emt 0:00:16]} (55... Re3 $142 56. Bc1 Bd3+ 57. Rxd3 Rxd3 58. Ke2 Rc3 59. Bd2 Ra3 60. Bc1 Rxa4 61. Ke1 Ra1 62. Kd2 Ra2+ 63. Kc3 Rxg2 64. Bd2 {[#]} Rxd2 $1 {[%mdl 512]} 65. Kxd2 g3 66. Ke1 f3 67. Kf1 g2+ 68. Kg1 Kf4 69. Kf2 Ke4 70. Ke1 g1=Q+ 71. Kd2 f2 72. Kc2 Qa1 73. Kd2 Qb2+ 74. Kd1 f1=Q#) 56. Kg1 {[%emt 0:00:14]} Re3 {[%emt 0:00:20][%cal Re3e1]} 57. Kf1 {[%emt 0:00:16]} Bd3+ {[%emt 0:00:04] What a fight!  Weighted Error Value: White=0.67/Black=0.28 (precise)} 0-1

[Event "2nd Serbia Open Masters 2022"]
[Site "Novi Sad"]
[Date "2022.06.29"]
[Round "2.50"]
[White "Spasic, Petar"]
[Black "Demchenko, Anton"]
[Result "1/2-1/2"]
[ECO "A21"]
[WhiteElo "2336"]
[BlackElo "2654"]
[Annotator "TA"]
[PlyCount "89"]
[EventDate "2022.06.28"]
[EventType "swiss"]
[EventCountry "SRB"]
[SourceTitle "playchess.com"]
[Source "ChessBase"]
[SourceQuality "1"]
[TimeControl "40/5400+30:900+30"]

{[%evp 9,89,2,0,0,0,0,23,8,7,1,8,3,0,11,25,24,24,27,29,25,29,28,33,35,39,11,17,-13,-10,-11,-12,-9,-11,-12,-16,-22,-16,-32,-21,-20,-22,-12,-26,-32,0,0,0,0,47,0,0,-58,-29,-62,-25,-89,-75,-70,0,0,0,0,0,0,52,69,43,-14,0,0,0,0,0,0,0,0,0,0,0,-1,0,0]} 1. c4 {[%emt 0:00:10]} e5 {[%emt 0:00:05]} 2. Nc3 {[%emt 0:00:06]} Bb4 {[%emt 0:00:24]} 3. Nd5 {[%emt 0:00:09]} a5 {[%emt 0:00:26]} 4. Nf3 {[%emt 0:00:53]} d6 {[%emt 0:00:34]} 5. g3 {[%emt 0:01:00]} Ne7 {[%emt 0:01:37]} 6. Bg2 {[%emt 0:05:32] [#] A21: English Opening: 1...e5 2 Nc3.} O-O $146 {[%emt 0:06:52]} ({Predecessor:} 6... Nxd5 7. cxd5 Bc5 8. O-O Qf6 9. d3 O-O 10. Nd2 Qe7 11. Nc4 Nd7 12. Bd2 a4 {0-1 (29) Ivanisevic,I (2604)-Donchenko,A (2646) Chess.com INT 2020}) 7. O-O {[%emt 0:00:59]} Nbc6 {[%emt 0:00:22]} 8. d4 {[%emt 0:06:46] White has an edge.} (8. e3 $5 {[%cal Rd2d4]}) 8... Nxd5 {[%emt 0:02:27]} (8... exd4 {feels hotter.} 9. Nxd4 Nxd4 10. Qxd4 Bc5) 9. cxd5 {[%emt 0:00:29]} Nxd4 {[%emt 0:00:03]} 10. Nxd4 {[%emt 0:00:05]} exd4 {[%emt 0:00:03]} 11. Qxd4 {[%emt 0:00:14]} Qe8 {[%emt 0:12:09]} 12. Bd2 {[%emt 0:09:54][%cal Bc1d2,Bd2c3,Bc3e5,Be5f4,Bf4e3][%mdl 32]} Bc5 {[%emt 0:03:35]} 13. Qd3 {[%emt 0:00:35]} b6 {[%emt 0:03:48]} 14. Rfe1 {[%emt 0:02:21]} Qe5 {[%emt 0:08:25]} 15. Bc3 {[%emt 0:10:51]} Qf5 {[%emt 0:00:06]} 16. Qxf5 {[%emt 0:00:37]} Bxf5 {[%emt 0:00:02]} 17. e4 {[%emt 0:01:19]} Bd7 {[%emt 0:00:20]} 18. e5 {[%emt 0:00:52]} dxe5 {[%emt 0:00:15]} 19. Bxe5 {[%emt 0:05:01]} Rac8 {[%emt 0:00:06]} 20. Bf1 {[%emt 0:06:05]} f6 {[%emt 0:01:56]} 21. Bf4 {[%emt 0:00:47]} g5 {[%emt 0:00:34]} 22. Be3 {[%emt 0:00:24] Hoping for Bxc5.} Bd6 {[%emt 0:00:21]} 23. f4 {[%emt 0:04:27]} Rce8 {[%emt 0:04:18]} 24. Bd2 {[%emt 0:00:52]} Bf5 {[%emt 0:05:09]} 25. fxg5 {[%emt 0:05:40]} Bc5+ {[%emt 0:29:35][%cal Bd6c5,Bc5d4,Bd4b2,Bb2c1][%mdl 32]} 26. Kh1 {[%emt 0:05:35]} Bd4 {[%emt 0:00:06]} 27. Bf4 {[%emt 0:13:12]} Bxb2 {[%emt 0:00:09]} 28. Rad1 {[%emt 0:00:33]} Bg4 {[%emt 0:02:37]} (28... Rxe1 $11 29. Rxe1 fxg5 30. Bxc7 Bc3) 29. Rxe8 {[%emt 0:00:05]} (29. Bxc7 $14 {might be stronger.} fxg5 {[#]} 30. d6 $1 Bf3+ 31. Bg2 Bxd1 32. Rxd1) 29... Rxe8 $11 {[%emt 0:00:30]} 30. Rd2 {[%emt 0:00:13]} (30. Rb1 $11 Be5 31. gxf6 Bxf4 32. gxf4) 30... fxg5 {[%emt 0:07:19] [#] Threatens to win with ...Ba3.} 31. Bxc7 {[%emt 0:10:14]} Bc1 {[%emt 0:02:19]} 32. Rd3 {[%emt 0:01:58]} (32. Rf2 $11 {keeps the balance.}) 32... Re1 $17 {[%emt 0:00:37]} 33. Kg2 {[%emt 0:01:07] Inhibits Bh3+.} Bf5 {[%emt 0:00:04]} ({Black should try} 33... Be3 $15) 34. d6 $1 $11 {[%emt 0:05:29] Strongly threatening d7.} Be4+ {[%emt 0:06:05]} 35. Kh3 {[%emt 0:00:06] And now d7 would win.} Bf5+ {[%emt 0:01:30]} (35... Rxf1 $5 36. d7 Bf5+ 37. Kg2 Bxd7 38. Kxf1 (38. Rxd7 Rf6 $17) 38... Bb5 $11) 36. Kg2 {[%emt 0:00:05]} ({Avoid the trap} 36. g4 $2 Bxd3 37. Bxd3 Re3+ 38. Kg2 Rxd3 $19) 36... Bxd3 {[%emt 0:02:18]} (36... Be4+ $11 37. Kh3 Bf5+ 38. Kg2 (38. g4 $2 Bxd3 39. Bxd3 Re3+ 40. Kg2 Rxd3 $19)) 37. Bxd3 {[%emt 0:00:08][%mdl 4096] Endgame d7 would kill now. KRB-KB} Rd1 {[%emt 0:00:01]} 38. d7 {[%emt 0:01:21]} (38. Bb5 $14 Kf7 39. d7) 38... Rd2+ {[%emt 0:01:13] The position is equal.} 39. Kf1 {[%emt 0:00:36]} Rxd3 {[%emt 0:00:04]} 40. d8=Q+ {[%emt 0:00:00]} Rxd8 {[%emt 0:00:00]} 41. Bxd8 {[%emt 0:00:11]} a4 {[%emt 0:03:43] aiming for ...b5.} 42. Bxb6 {[%emt 0:00:19]} Kf7 {[%emt 0:05:45]} 43. Ke2 {[%emt 0:00:36]} Ke6 {[%emt 0:01:12]} 44. Kd3 {[%emt 0:00:44]} Kd5 {[%emt 0:00:22]} 45. g4 {[%emt 0:00:43] Weighted Error Value: White=0.11 (very precise) /Black=0.10 (very precise)} 1/2-1/2

[Event "2nd Serbia Open Masters 2022"]
[Site "Novi Sad"]
[Date "2022.06.29"]
[Round "2.51"]
[White "Milosevic, Milos"]
[Black "Indjic, Aleksandar"]
[Result "0-1"]
[ECO "B81"]
[WhiteElo "2288"]
[BlackElo "2621"]
[Annotator "TA"]
[PlyCount "66"]
[EventDate "2022.06.28"]
[EventType "swiss"]
[EventCountry "SRB"]
[SourceTitle "playchess.com"]
[Source "ChessBase"]
[SourceQuality "1"]
[TimeControl "40/5400+30:900+30"]

{[%evp 21,65,25,20,16,3,-38,-89,-72,6,-80,-88,-240,-241,-244,-227,-319,-260,-460,-458,-613,-599,-999,-981,-1420,-1433,-1430,-1315,-1354,-1332,-29988,-1986,-29992,-29993,-29993,-29994,-29994,-29995,-29995,-29996,-29996,-29997,-29997,-29998,-29998,-29999,-29999]} 1. e4 {[%emt 1:31:00]} c5 2. Nf3 {[%emt 0:00:30]} e6 {[%emt 1:31:30]} 3. d4 {[%emt 0:00:30]} cxd4 {[%emt 0:00:30]} 4. Nxd4 {[%emt 0:00:30]} Nf6 {[%emt 0:00:30]} 5. Nc3 {[%emt 0:00:30]} d6 {[%emt 0:00:30]} 6. g4 {[%emt 0:00:30]} h6 {[%emt 0:00:30]} 7. h4 {[%emt 0:00:30]} Nc6 {[%emt 0:00:30]} 8. Rg1 {[%emt 0:00:30]} d5 {[%emt 0:00:30]} 9. Bb5 {[%emt 0:00:30]} Bd7 {[%emt 0:00:30]} 10. exd5 {[%emt 0:00:30]} Nxd5 {[%emt 0:00:30]} 11. Nxd5 {[%emt 0:00:30]} exd5 {[%emt 0:00:30]} 12. Qe2+ {[%emt 0:00:30] B81: Sicilian Scheveningen: Keres Attack.} Be7 {[%emt 0:00:30] [#]} 13. Nxc6 $146 {[%emt 0:00:30]} ({Predecessor:} 13. Nf5 Bxf5 14. gxf5 Kf8 15. Be3 Bf6 16. O-O-O Qd6 17. c3 Rd8 18. Rd2 Kg8 19. Rgd1 Qe5 {½-½ (47) Gokerkan,C (2470)-Ronka,E (2303) Belgrade 2021}) 13... bxc6 {[%emt 0:00:30]} 14. Bd3 {[%emt 0:00:30] Black is better.} Kf8 {[%emt 0:00:30]} (14... O-O $17 {Threatens to win with ...Re8.} 15. g5 Re8) 15. g5 {[%emt 0:00:30]} (15. h5 $11) 15... hxg5 $17 {[%emt 0:00:30]} 16. hxg5 $2 {[%emt 0:00:30] This move loses the game for White.} (16. Bxg5 $17 Bxg5 17. hxg5) 16... Qb6 $1 $19 {[%emt 0:00:30]} 17. Qf3 {[%emt 0:00:30]} Re8 $1 {[%emt 0:00:30] Strongly threatening ...Rh3.} ({Weaker is} 17... Rh3 18. Rg3 Rh2 19. Kf1 $17) 18. g6 {[%emt 0:00:30]} (18. Be3 $142 d4 19. O-O-O) 18... Bf6+ {[%emt 0:00:30]} 19. Kd1 $2 {[%emt 0:00:30]} (19. Kf1 Bh3+ 20. Rg2) 19... Rh3 {[%emt 0:00:30]} 20. Qf4 {[%emt 0:00:30]} c5 {[%emt 0:00:30] aiming for ...c4.} 21. gxf7 {[%emt 0:00:30]} Re5 {[%emt 0:00:30] Hoping for ...g5.} 22. b4 {[%emt 0:00:30] [#]} Rxd3+ $1 {[%emt 0:00:30][%mdl 512]} 23. cxd3 {[%emt 0:00:30]} Ba4+ {[%emt 0:00:30] A strong pair of Bishops.} 24. Kd2 {[%emt 0:00:30]} Qe6 {[%emt 0:00:30][%csl Ge6][%cal Re5e2]} 25. Qg4 {[%emt 0:00:30] Prevents Re2+.} Rf5 {[%emt 0:00:30]} (25... Bg5+ $142 26. f4 Bxf4+ $1 {[%mdl 512]} 27. Kc3 d4+ 28. Kb2 Re2+ 29. Bd2 Rxd2+ 30. Kb1 Bc2+ 31. Kc1 Rf2+ 32. Qxf4 Rxf4 33. Kb2 Rf2 34. Raf1 Rd2 35. Rg2 Rxg2 36. Ka3 Bxd3 37. Rf2 Rxf2 38. bxc5 Rxa2+ 39. Kb4 Qc4#) 26. f3 {[%emt 0:00:30]} Bc3+ {[%emt 0:00:30][%mdl 64] Decoy. Black mates.} 27. Kxc3 {[%emt 0:00:30] [#]} d4+ $1 {[%emt 0:00:30]} 28. Kb2 {[%emt 0:00:30] [#]} Qe2+ $1 {[%emt 0:00:30]} 29. Ka3 {[%emt 0:00:30]} cxb4+ {[%emt 0:00:30]} 30. Kxb4 {[%emt 0:00:30]} a5+ {[%emt 0:00:30]} 31. Kxa4 {[%emt 0:00:30]} Qc2+ {[%emt 0:00:30]} 32. Ka3 {[%emt 0:00:30]} Qc3+ {[%emt 0:00:30]} 33. Ka4 {[%emt 0:00:30]} Qb4# {[%emt 0:00:30] Weighted Error Value: White=1.56/Black=0.23 (precise)} 0-1